[Event "*** Titled Tuesday 3|2 Blitz"]
[Site "Chess.com"]
[Date "2016.02.02"]
[Round "5"]
[White "Spinaltap"]
[Black "Cecile_Haussernot"]
[Result "1-0"]
[WhiteElo "2386"]
[BlackElo "2172"]
[TimeControl "180+2"]
[EndTime "12:07:08 PST"]
[Termination "Spinaltap won on time"]

1. Nf3 {[%clk 0:03:01.9]} 1... c5 {[%clk 0:02:52.8]} 2. g3 {[%clk 0:02:48.8]}
2... Nc6 {[%clk 0:02:52.5]} 3. Bg2 {[%clk 0:02:49.1]} 3... g6 {[%clk 0:02:51.6]}
4. O-O {[%clk 0:02:46]} 4... Bg7 {[%clk 0:02:52.4]} 5. e4 {[%clk 0:02:44.9]}
5... d6 {[%clk 0:02:51.4]} 6. h3 {[%clk 0:02:37]} 6... Nf6 {[%clk 0:02:51]} 7.
Re1 {[%clk 0:02:35.9]} 7... O-O {[%clk 0:02:51]} 8. c3 {[%clk 0:02:35.5]} 8...
e5 {[%clk 0:02:33.8]} 9. d4 {[%clk 0:02:13.2]} 9... Qc7 {[%clk 0:02:02.1]} 10.
dxe5 {[%clk 0:01:59.9]} 10... dxe5 {[%clk 0:01:59.3]} 11. Bg5 {[%clk 0:02:00.3]}
11... Be6 {[%clk 0:01:58.7]} 12. Nbd2 {[%clk 0:01:54.1]} 12... Rad8 {[%clk
0:01:57.3]} 13. Qc2 {[%clk 0:01:53]} 13... b5 {[%clk 0:01:40.6]} 14. a4 {[%clk
0:01:45.1]} 14... b4 {[%clk 0:01:39.5]} 15. Bf1 {[%clk 0:01:39.5]} 15... Rd7
{[%clk 0:01:25.4]} 16. Kh2 {[%clk 0:01:30.2]} 16... Rfd8 {[%clk 0:01:25.3]} 17.
Bc4 {[%clk 0:01:25.6]} 17... h6 {[%clk 0:00:45.3]} 18. Bxe6 {[%clk 0:01:13.2]}
18... fxe6 {[%clk 0:00:46.5]} 19. Be3 {[%clk 0:01:13.8]} 19... Rd3 {[%clk
0:00:35.6]} 20. Rad1 {[%clk 0:00:56.8]} 20... bxc3 {[%clk 0:00:33.9]} 21. bxc3
{[%clk 0:00:56.1]} 21... Qa5 {[%clk 0:00:33.1]} 22. Nb1 {[%clk 0:00:42.7]} 22...
c4 {[%clk 0:00:32.6]} 23. Nfd2 {[%clk 0:00:39.7]} 23... Qa6 {[%clk 0:00:24]} 24.
Na3 {[%clk 0:00:38.9]} 24... Na5 {[%clk 0:00:24.2]} 25. Ndxc4 {[%clk 0:00:30.3]}
25... Rxd1 {[%clk 0:00:23.1]} 26. Rxd1 {[%clk 0:00:31.2]} 26... Rxd1 {[%clk
0:00:23.4]} 27. Qxd1 {[%clk 0:00:32.1]} 27... Nxc4 {[%clk 0:00:25]} 28. Qd3
{[%clk 0:00:32.9]} 28... Qxa4 {[%clk 0:00:21.6]} 29. Nxc4 {[%clk 0:00:33.4]}
29... Qc6 {[%clk 0:00:22.5]} 30. f3 {[%clk 0:00:32.3]} 30... Qb5 {[%clk
0:00:19.7]} 31. Bxa7 {[%clk 0:00:26.8]} 31... Nd7 {[%clk 0:00:15.8]} 32. Kg2
{[%clk 0:00:22.9]} 32... Bf8 {[%clk 0:00:14]} 33. Qf1 {[%clk 0:00:22.3]} 33...
Qa6 {[%clk 0:00:14.3]} 34. Be3 {[%clk 0:00:22.3]} 34... Qa2+ {[%clk 0:00:15.5]}
35. Nd2 {[%clk 0:00:15.3]} 35... Nc5 {[%clk 0:00:15.9]} 36. Qf2 {[%clk
0:00:11.3]} 36... Nd3 {[%clk 0:00:15.8]} 37. Qe2 {[%clk 0:00:12.6]} 37... Qc2
{[%clk 0:00:17.1]} 38. Kf1 {[%clk 0:00:12.6]} 38... Qxc3 {[%clk 0:00:18.1]} 39.
h4 {[%clk 0:00:12.5]} 39... Qc1+ {[%clk 0:00:19.2]} 40. Kg2 {[%clk 0:00:13.3]}
40... Ne1+ {[%clk 0:00:20.4]} 41. Kh3 {[%clk 0:00:14]} 41... Nc2 {[%clk
0:00:21.3]} 42. Nf1 {[%clk 0:00:13.8]} 42... Qb1 {[%clk 0:00:21.6]} 43. Bd2
{[%clk 0:00:13.8]} 43... Qb3 {[%clk 0:00:21.8]} 44. Ne3 {[%clk 0:00:14.3]} 44...
Nd4 {[%clk 0:00:23.1]} 45. Qf1 {[%clk 0:00:13.7]} 45... Qb2 {[%clk 0:00:23.2]}
46. Qf2 {[%clk 0:00:14.7]} 46... Qa1 {[%clk 0:00:23.3]} 47. Kg2 {[%clk
0:00:14.7]} 47... Bc5 {[%clk 0:00:24.6]} 48. Ng4 {[%clk 0:00:15.1]} 48... Nb3
{[%clk 0:00:24.5]} 49. Be3 {[%clk 0:00:15.8]} 49... Bb4 {[%clk 0:00:23.4]} 50.
Nxe5 {[%clk 0:00:16.4]} 50... Qxe5 {[%clk 0:00:23.4]} 51. Bxh6 {[%clk
0:00:16.8]} 51... Bc5 {[%clk 0:00:23.6]} 52. Be3 {[%clk 0:00:17.4]} 52... Bb4
{[%clk 0:00:24.1]} 53. Qe2 {[%clk 0:00:17.4]} 53... Qc3 {[%clk 0:00:24.8]} 54.
Bf4 {[%clk 0:00:17.3]} 54... Bc5 {[%clk 0:00:24.9]} 55. Qb5 {[%clk 0:00:17.8]}
55... Qc2+ {[%clk 0:00:24.2]} 56. Kh3 {[%clk 0:00:18.9]} 56... Nd4 {[%clk
0:00:23.1]} 57. Qe8+ {[%clk 0:00:19.5]} 57... Kg7 {[%clk 0:00:24.5]} 58. Qd7+
{[%clk 0:00:20.5]} 58... Kg8 {[%clk 0:00:18.2]} 59. Be5 {[%clk 0:00:21.5]} 59...
Bf8 {[%clk 0:00:17.7]} 60. Bxd4 {[%clk 0:00:19.9]} 60... Qb3 {[%clk 0:00:14.3]}
61. Kg4 {[%clk 0:00:19.3]} 61... Qc4 {[%clk 0:00:12.2]} 62. Bf6 {[%clk
0:00:19.8]} 1-0

[Event "*** Titled Tuesday 3|2 Blitz"]
[Site "Chess.com"]
[Date "2016.02.02"]
[Round "5"]
[White "BillieKimbah"]
[Black "pedromartinez91"]
[Result "1-0"]
[WhiteElo "2398"]
[BlackElo "1976"]
[TimeControl "180+2"]
[EndTime "12:07:45 PST"]
[Termination "BillieKimbah won by checkmate"]

1. d4 {[%clk 0:02:58.4]} 1... d5 {[%clk 0:03:00.5]} 2. Nf3 {[%clk 0:02:58.8]}
2... Nf6 {[%clk 0:03:00.7]} 3. Bf4 {[%clk 0:02:59.5]} 3... e6 {[%clk 0:02:59.4]}
4. e3 {[%clk 0:02:59.7]} 4... c5 {[%clk 0:02:59.8]} 5. c3 {[%clk 0:02:59.9]}
5... Bd6 {[%clk 0:03:00.3]} 6. Bg3 {[%clk 0:03:00.5]} 6... Nc6 {[%clk
0:03:00.6]} 7. Nbd2 {[%clk 0:03:01]} 7... Qc7 {[%clk 0:03:01.4]} 8. dxc5 {[%clk
0:02:53]} 8... Bxg3 {[%clk 0:03:00.5]} 9. hxg3 {[%clk 0:02:53.8]} 9... a5 {[%clk
0:02:55.9]} 10. a4 {[%clk 0:02:37.6]} 10... Nd7 {[%clk 0:02:54.8]} 11. Nb3
{[%clk 0:02:36.8]} 11... Nce5 {[%clk 0:02:42.5]} 12. Nxe5 {[%clk 0:02:33.4]}
12... Nxe5 {[%clk 0:02:37.1]} 13. Qd4 {[%clk 0:02:27.7]} 13... O-O {[%clk
0:02:32.9]} 14. Be2 {[%clk 0:01:52.9]} 14... Bd7 {[%clk 0:02:27.8]} 15. Nd2
{[%clk 0:01:38.7]} 15... Ng6 {[%clk 0:02:22.6]} 16. O-O {[%clk 0:01:33.4]} 16...
Bc6 {[%clk 0:02:15.5]} 17. Nf3 {[%clk 0:01:30.1]} 17... e5 {[%clk 0:02:15.6]}
18. Qd2 {[%clk 0:01:30.3]} 18... Qe7 {[%clk 0:02:03.2]} 19. b4 {[%clk 0:01:30]}
19... Rfd8 {[%clk 0:02:00.3]} 20. Bb5 {[%clk 0:01:23.4]} 20... Qd7 {[%clk
0:01:24.8]} 21. Qe2 {[%clk 0:01:20.3]} 21... h5 {[%clk 0:01:02.2]} 22. Rfd1
{[%clk 0:01:19.3]} 22... Qe8 {[%clk 0:01:02.3]} 23. Ng5 {[%clk 0:01:13.1]} 23...
h4 {[%clk 0:01:00.8]} 24. gxh4 {[%clk 0:01:13.2]} 24... Nxh4 {[%clk 0:01:01.6]}
25. Qh5 {[%clk 0:01:11.9]} 25... Ng6 {[%clk 0:00:59.8]} 26. e4 {[%clk
0:00:58.7]} 26... Bxb5 {[%clk 0:00:58.1]} 27. axb5 {[%clk 0:00:58.9]} 27... dxe4
{[%clk 0:00:46]} 28. Rxd8 {[%clk 0:00:53.8]} 28... Qxd8 {[%clk 0:00:38.1]} 29.
Rd1 {[%clk 0:00:35.6]} 29... Qe8 {[%clk 0:00:35.5]} 30. bxa5 {[%clk 0:00:32.2]}
30... Qxb5 {[%clk 0:00:31.1]} 31. Nxf7 {[%clk 0:00:27]} 31... Kxf7 {[%clk
0:00:29.7]} 32. Qf5+ {[%clk 0:00:27.7]} 32... Kg8 {[%clk 0:00:30.5]} 33. Qxg6
{[%clk 0:00:28.5]} 33... Qxc5 {[%clk 0:00:28.2]} 34. Rd7 {[%clk 0:00:26.6]}
34... Qf8 {[%clk 0:00:26.9]} 35. Qe6+ {[%clk 0:00:26.2]} 35... Kh8 {[%clk
0:00:26.8]} 36. Qh3+ {[%clk 0:00:27.4]} 36... Kg8 {[%clk 0:00:27.4]} 37. Qe6+
{[%clk 0:00:28.9]} 37... Kh8 {[%clk 0:00:28.3]} 38. Rf7 {[%clk 0:00:28.1]} 38...
Qg8 {[%clk 0:00:23.9]} 39. Qf5 {[%clk 0:00:19.2]} 39... Qh7 {[%clk 0:00:19.2]}
40. Qxe5 {[%clk 0:00:19]} 40... Rd8 {[%clk 0:00:16.9]} 41. Rd7 {[%clk
0:00:12.6]} 41... Rxd7 {[%clk 0:00:08.4]} 42. Qe8+ {[%clk 0:00:13.6]} 42... Qg8
{[%clk 0:00:09.2]} 43. Qh5+ {[%clk 0:00:15.1]} 43... Qh7 {[%clk 0:00:09.7]} 44.
Qe8+ {[%clk 0:00:16.7]} 44... Qg8 {[%clk 0:00:11]} 45. Qxd7 {[%clk 0:00:18.3]}
45... Qb3 {[%clk 0:00:11.3]} 46. Qe8+ {[%clk 0:00:18.2]} 46... Kh7 {[%clk
0:00:11.9]} 47. Qxe4+ {[%clk 0:00:19.7]} 47... Kh8 {[%clk 0:00:12.5]} 48. Qe8+
{[%clk 0:00:20.4]} 48... Kh7 {[%clk 0:00:13]} 49. Qh5+ {[%clk 0:00:21.8]} 49...
Kg8 {[%clk 0:00:14.1]} 50. Qe5 {[%clk 0:00:23.4]} 50... Qb1+ {[%clk 0:00:13.5]}
51. Kh2 {[%clk 0:00:24.5]} 51... Qh7+ {[%clk 0:00:15.1]} 52. Kg3 {[%clk
0:00:25.7]} 52... Qd3+ {[%clk 0:00:16.3]} 53. f3 {[%clk 0:00:26.1]} 53... Qd7
{[%clk 0:00:12.9]} 54. c4 {[%clk 0:00:25.5]} 54... Qa4 {[%clk 0:00:09]} 55. Qd5+
{[%clk 0:00:25.8]} 55... Kh7 {[%clk 0:00:09.9]} 56. Qh5+ {[%clk 0:00:26.7]}
56... Kg8 {[%clk 0:00:10.4]} 57. Qb5 {[%clk 0:00:27.9]} 57... Qa1 {[%clk
0:00:06.8]} 58. Qe8+ {[%clk 0:00:23.3]} 58... Kh7 {[%clk 0:00:07.1]} 59. Qh5+
{[%clk 0:00:24.8]} 59... Kg8 {[%clk 0:00:08.1]} 60. Qd5+ {[%clk 0:00:26.4]}
60... Kh7 {[%clk 0:00:09.2]} 61. Qxb7 {[%clk 0:00:24.7]} 61... Qe5+ {[%clk
0:00:09.3]} 62. f4 {[%clk 0:00:25.7]} 62... Qxa5 {[%clk 0:00:07.4]} 63. Qe4+
{[%clk 0:00:25.2]} 63... Kh6 {[%clk 0:00:07.9]} 64. Qe6+ {[%clk 0:00:24.4]}
64... g6 {[%clk 0:00:08.4]} 65. Qh3+ {[%clk 0:00:24.4]} 65... Kg7 {[%clk
0:00:08.8]} 66. Qd7+ {[%clk 0:00:26]} 66... Kh6 {[%clk 0:00:09.9]} 67. Qd3
{[%clk 0:00:21.2]} 67... Qe1+ {[%clk 0:00:10.6]} 68. Kf3 {[%clk 0:00:20.5]}
68... Qe6 {[%clk 0:00:09.2]} 69. Qe4 {[%clk 0:00:19.6]} 69... Qb6 {[%clk
0:00:09.3]} 70. Qe5 {[%clk 0:00:19.6]} 70... Qb7+ {[%clk 0:00:08]} 71. Kg3
{[%clk 0:00:20.3]} 71... Qb3+ {[%clk 0:00:08.5]} 72. Kh4 {[%clk 0:00:18.7]}
72... Qxc4 {[%clk 0:00:08.4]} 73. Qh8# {[%clk 0:00:18.9]} 1-0

[Event "*** Titled Tuesday 3|2 Blitz"]
[Site "Chess.com"]
[Date "2016.02.02"]
[Round "5"]
[White "lionheart95"]
[Black "IMRosen"]
[Result "1/2-1/2"]
[WhiteElo "2227"]
[BlackElo "2255"]
[TimeControl "180+2"]
[EndTime "12:08:40 PST"]
[Termination "Game drawn by stalemate"]

1. e4 {[%clk 0:02:03.5]} 1... c5 {[%clk 0:02:42.9]} 2. Nf3 {[%clk 0:02:04.3]}
2... e6 {[%clk 0:02:43.5]} 3. d4 {[%clk 0:02:05.3]} 3... cxd4 {[%clk 0:02:44.2]}
4. Nxd4 {[%clk 0:02:06.9]} 4... Nc6 {[%clk 0:02:45.6]} 5. Nb5 {[%clk 0:02:07.9]}
5... d6 {[%clk 0:02:42.9]} 6. c4 {[%clk 0:02:08.7]} 6... Nf6 {[%clk 0:02:43.3]}
7. N5c3 {[%clk 0:02:10.2]} 7... Be7 {[%clk 0:02:43.8]} 8. g3 {[%clk 0:02:11.8]}
8... O-O {[%clk 0:02:44.7]} 9. Bg2 {[%clk 0:02:13.4]} 9... a6 {[%clk 0:02:44.2]}
10. O-O {[%clk 0:02:14.3]} 10... Qc7 {[%clk 0:02:45.9]} 11. Be3 {[%clk 0:02:12]}
11... b6 {[%clk 0:02:45.6]} 12. Na3 {[%clk 0:02:08.8]} 12... Bb7 {[%clk
0:02:46.8]} 13. Rc1 {[%clk 0:02:09.3]} 13... Ne5 {[%clk 0:02:45.8]} 14. h3
{[%clk 0:02:05.7]} 14... Rac8 {[%clk 0:02:44.5]} 15. f4 {[%clk 0:02:04.7]} 15...
Ned7 {[%clk 0:02:23.2]} 16. g4 {[%clk 0:01:57.5]} 16... Rfd8 {[%clk 0:02:09.8]}
17. g5 {[%clk 0:01:56.3]} 17... Ne8 {[%clk 0:02:08.2]} 18. Qe2 {[%clk
0:01:49.2]} 18... Nf8 {[%clk 0:02:08.7]} 19. Rfd1 {[%clk 0:01:48.4]} 19... Rd7
{[%clk 0:02:06.8]} 20. Na4 {[%clk 0:01:43.6]} 20... Rb8 {[%clk 0:01:51]} 21.
Bxb6 {[%clk 0:01:40]} 21... Qc6 {[%clk 0:01:44]} 22. b3 {[%clk 0:01:26.9]} 22...
e5 {[%clk 0:01:45.3]} 23. Be3 {[%clk 0:01:24.3]} 23... Ng6 {[%clk 0:01:44.5]}
24. fxe5 {[%clk 0:01:19.2]} 24... Nxe5 {[%clk 0:01:45]} 25. Nb6 {[%clk
0:01:18.4]} 25... Rdd8 {[%clk 0:01:45.8]} 26. Nd5 {[%clk 0:01:18.8]} 26... Bf8
{[%clk 0:01:46.5]} 27. Nc2 {[%clk 0:01:18.2]} 27... Bc8 {[%clk 0:01:45.8]} 28.
Nd4 {[%clk 0:01:17.9]} 28... Qa8 {[%clk 0:01:42.9]} 29. Rf1 {[%clk 0:01:17.2]}
29... a5 {[%clk 0:01:37.1]} 30. Rf2 {[%clk 0:01:14.3]} 30... Rb7 {[%clk
0:01:36.6]} 31. Rcf1 {[%clk 0:01:14.5]} 31... Re7 {[%clk 0:01:35.9]} 32. Nxe7+
{[%clk 0:01:14.1]} 32... Bxe7 {[%clk 0:01:36.5]} 33. Nf5 {[%clk 0:01:15]} 33...
Bf8 {[%clk 0:01:37.6]} 34. Bd4 {[%clk 0:01:14.5]} 34... Be6 {[%clk 0:01:36.6]}
35. Bxe5 {[%clk 0:01:14.2]} 35... dxe5 {[%clk 0:01:38.5]} 36. Kh1 {[%clk
0:01:11.4]} 36... Qc6 {[%clk 0:01:37]} 37. Ne3 {[%clk 0:01:11.8]} 37... a4
{[%clk 0:01:36.7]} 38. Nd5 {[%clk 0:01:12.3]} 38... axb3 {[%clk 0:01:37.3]} 39.
axb3 {[%clk 0:01:14.2]} 39... Rb8 {[%clk 0:01:38.5]} 40. Rf3 {[%clk 0:01:14.3]}
40... Ra8 {[%clk 0:01:31.6]} 41. Qf2 {[%clk 0:01:14.8]} 41... Qb7 {[%clk
0:01:30.9]} 42. Qg3 {[%clk 0:01:14.7]} 42... Ra2 {[%clk 0:01:29.1]} 43. Rg1
{[%clk 0:01:11.2]} 43... Bc5 {[%clk 0:01:29.7]} 44. Rgf1 {[%clk 0:01:10.5]}
44... Bd4 {[%clk 0:01:31.2]} 45. Nf6+ {[%clk 0:01:09.5]} 45... gxf6 {[%clk
0:01:26.4]} 46. gxf6+ {[%clk 0:01:09.8]} 46... Kh8 {[%clk 0:01:10.7]} 47. Qh4
{[%clk 0:01:10.4]} 47... Qb4 {[%clk 0:01:04.8]} 48. Rg3 {[%clk 0:01:09.1]} 48...
Bf2 {[%clk 0:01:01.6]} 49. Rxf2 {[%clk 0:01:04.2]} 49... Rxf2 {[%clk 0:01:03.5]}
50. Qg5 {[%clk 0:01:03]} 50... Qf8 {[%clk 0:01:02.5]} 51. Qxe5 {[%clk
0:01:02.8]} 51... Rxf6 {[%clk 0:00:55.3]} 52. c5 {[%clk 0:00:52.1]} 52... Qe7
{[%clk 0:00:53.3]} 53. b4 {[%clk 0:00:52.9]} 53... Ng7 {[%clk 0:00:51.1]} 54. b5
{[%clk 0:00:52.4]} 54... Rg6 {[%clk 0:00:49.3]} 55. Qb8+ {[%clk 0:00:48.8]}
55... Qe8 {[%clk 0:00:47.6]} 56. Qxe8+ {[%clk 0:00:46.8]} 56... Nxe8 {[%clk
0:00:49.5]} 57. Rxg6 {[%clk 0:00:45.1]} 57... hxg6 {[%clk 0:00:51.4]} 58. b6
{[%clk 0:00:46.3]} 58... Bc8 {[%clk 0:00:45.9]} 59. e5 {[%clk 0:00:47.3]} 59...
f6 {[%clk 0:00:43]} 60. c6 {[%clk 0:00:45.8]} 60... Nc7 {[%clk 0:00:34.7]} 61.
bxc7 {[%clk 0:00:40.7]} 61... Kg7 {[%clk 0:00:23.2]} 62. exf6+ {[%clk
0:00:39.7]} 62... Kxf6 {[%clk 0:00:25.1]} 63. h4 {[%clk 0:00:40.4]} 63... Ke5
{[%clk 0:00:22.1]} 64. Kh2 {[%clk 0:00:41.1]} 64... Kd6 {[%clk 0:00:23.8]} 65.
Bh3 {[%clk 0:00:42]} 65... Kxc7 {[%clk 0:00:15.2]} 66. Bxc8 {[%clk 0:00:41]}
66... Kxc6 {[%clk 0:00:11.5]} 67. Kg3 {[%clk 0:00:41.8]} 67... Kd6 {[%clk
0:00:11.6]} 68. Kg4 {[%clk 0:00:42.8]} 68... Ke7 {[%clk 0:00:12.5]} 69. Kg5
{[%clk 0:00:43.7]} 69... Kf7 {[%clk 0:00:13.7]} 70. Be6+ {[%clk 0:00:43.9]}
70... Kg7 {[%clk 0:00:12.4]} 71. Bb3 {[%clk 0:00:43.5]} 71... Kh7 {[%clk
0:00:13.6]} 72. Kf6 {[%clk 0:00:38.6]} 72... Kh8 {[%clk 0:00:14.5]} 73. Kf7
{[%clk 0:00:34.1]} 73... Kh7 {[%clk 0:00:14.8]} 74. Kf6 {[%clk 0:00:28.6]} 74...
Kh6 {[%clk 0:00:14.2]} 75. Bd1 {[%clk 0:00:26.8]} 75... Kh7 {[%clk 0:00:15.4]}
76. Bf3 {[%clk 0:00:27.3]} 76... Kh6 {[%clk 0:00:16.6]} 77. Bg4 {[%clk
0:00:27.9]} 77... Kh7 {[%clk 0:00:17.8]} 78. Kg5 {[%clk 0:00:26.1]} 78... Kg7
{[%clk 0:00:18.9]} 79. Be6 {[%clk 0:00:26.2]} 79... Kh7 {[%clk 0:00:19.6]} 80.
Bb3 {[%clk 0:00:25.1]} 80... Kg7 {[%clk 0:00:20.7]} 81. Bd1 {[%clk 0:00:20.7]}
81... Kh7 {[%clk 0:00:21.9]} 82. Kf6 {[%clk 0:00:20.8]} 82... Kh6 {[%clk
0:00:20.5]} 83. Be2 {[%clk 0:00:19.7]} 83... Kh7 {[%clk 0:00:21.5]} 84. Kf7
{[%clk 0:00:20.6]} 84... Kh8 {[%clk 0:00:14.1]} 85. Bd3 {[%clk 0:00:21]} 85...
Kh7 {[%clk 0:00:15.1]} 86. h5 {[%clk 0:00:10.4]} 86... Kh8 {[%clk 0:00:14.2]}
87. hxg6 {[%clk 0:00:07.8]} 1/2-1/2

[Event "*** Titled Tuesday 3|2 Blitz"]
[Site "Chess.com"]
[Date "2016.02.02"]
[Round "5"]
[White "Smirnov_Pavel"]
[Black "ftorodent"]
[Result "1/2-1/2"]
[WhiteElo "2519"]
[BlackElo "2361"]
[TimeControl "180+2"]
[EndTime "12:08:44 PST"]
[Termination "Game drawn by stalemate"]

1. d4 {[%clk 0:03:01.9]} 1... d5 {[%clk 0:03:00.2]} 2. c4 {[%clk 0:03:02.6]}
2... e6 {[%clk 0:03:01.3]} 3. Nf3 {[%clk 0:03:02.9]} 3... Nf6 {[%clk 0:03:01.6]}
4. Nc3 {[%clk 0:03:03.9]} 4... Be7 {[%clk 0:03:02.6]} 5. Bf4 {[%clk 0:03:04.3]}
5... O-O {[%clk 0:03:03.3]} 6. e3 {[%clk 0:03:05.8]} 6... Nbd7 {[%clk
0:03:04.1]} 7. Be2 {[%clk 0:03:05.3]} 7... dxc4 {[%clk 0:02:58.1]} 8. O-O {[%clk
0:03:05.6]} 8... Nb6 {[%clk 0:02:52.3]} 9. Ne5 {[%clk 0:03:04.8]} 9... c5 {[%clk
0:02:51.4]} 10. dxc5 {[%clk 0:03:03.9]} 10... Bxc5 {[%clk 0:02:51.4]} 11. Nxc4
{[%clk 0:03:04.7]} 11... Nxc4 {[%clk 0:02:43.6]} 12. Bxc4 {[%clk 0:03:05.3]}
12... Bd7 {[%clk 0:02:45.1]} 13. Qe2 {[%clk 0:02:51.5]} 13... Bc6 {[%clk
0:02:42]} 14. Rad1 {[%clk 0:02:47.7]} 14... Qe7 {[%clk 0:02:42.7]} 15. e4 {[%clk
0:02:47.6]} 15... Rfd8 {[%clk 0:02:28.2]} 16. e5 {[%clk 0:02:46.9]} 16... Nd5
{[%clk 0:02:18.7]} 17. Nxd5 {[%clk 0:02:47.1]} 17... Bxd5 {[%clk 0:02:18.9]} 18.
Bxd5 {[%clk 0:02:40.8]} 18... Rxd5 {[%clk 0:02:16]} 19. Rxd5 {[%clk 0:02:41.7]}
19... exd5 {[%clk 0:02:17.2]} 20. Qd3 {[%clk 0:02:42.9]} 20... Rd8 {[%clk
0:02:15]} 21. Kh1 {[%clk 0:02:40.4]} 21... Qe6 {[%clk 0:02:08.4]} 22. Bg3 {[%clk
0:02:39.5]} 22... Qg6 {[%clk 0:02:08.8]} 23. Qf3 {[%clk 0:01:46]} 23... Qe4
{[%clk 0:01:55.9]} 24. Qh5 {[%clk 0:01:25.3]} 24... Be7 {[%clk 0:01:29.5]} 25.
Rd1 {[%clk 0:01:17.3]} 25... d4 {[%clk 0:01:26.8]} 26. Qf3 {[%clk 0:01:00.5]}
26... Qxf3 {[%clk 0:01:09.7]} 27. gxf3 {[%clk 0:01:01.3]} 27... f5 {[%clk
0:01:11.1]} 28. f4 {[%clk 0:00:56.1]} 28... Kf7 {[%clk 0:01:11.8]} 29. Kg2
{[%clk 0:00:57.3]} 29... Ke6 {[%clk 0:01:12.6]} 30. Kf3 {[%clk 0:00:58.5]} 30...
Kd5 {[%clk 0:01:11]} 31. Ke2 {[%clk 0:00:59.5]} 31... Rc8 {[%clk 0:01:06.1]} 32.
Kd3 {[%clk 0:01:00.2]} 32... Rc6 {[%clk 0:00:54.4]} 33. f3 {[%clk 0:00:55.6]}
33... Ra6 {[%clk 0:00:53]} 34. a3 {[%clk 0:00:56.1]} 34... Rb6 {[%clk 0:00:54]}
35. Kc2 {[%clk 0:00:57.2]} 35... Rc6+ {[%clk 0:00:52.9]} 36. Kd3 {[%clk
0:00:56.9]} 36... Rb6 {[%clk 0:00:54]} 37. Kc2 {[%clk 0:00:57.6]} 37... Rc6+
{[%clk 0:00:44.9]} 38. Kb3 {[%clk 0:00:55.9]} 38... Bc5 {[%clk 0:00:39.4]} 39.
Bf2 {[%clk 0:00:33.3]} 39... Bb6 {[%clk 0:00:40.1]} 40. Rd2 {[%clk 0:00:24.4]}
40... a6 {[%clk 0:00:36.1]} 41. Bg3 {[%clk 0:00:24.5]} 41... Ba7 {[%clk
0:00:35.6]} 42. Rd1 {[%clk 0:00:24.3]} 42... b5 {[%clk 0:00:36.3]} 43. Rd2
{[%clk 0:00:24.3]} 43... a5 {[%clk 0:00:37.2]} 44. Ka2 {[%clk 0:00:24.7]} 44...
Rc1 {[%clk 0:00:36.5]} 45. Bf2 {[%clk 0:00:20.8]} 45... a4 {[%clk 0:00:36.6]}
46. b3 {[%clk 0:00:19]} 46... Rc3 {[%clk 0:00:33.8]} 47. bxa4 {[%clk 0:00:19.9]}
47... bxa4 {[%clk 0:00:34.9]} 48. e6 {[%clk 0:00:21]} 48... Kxe6 {[%clk
0:00:28.4]} 49. Bxd4 {[%clk 0:00:21.3]} 49... Bxd4 {[%clk 0:00:29.2]} 50. Rxd4
{[%clk 0:00:22.6]} 50... Rxf3 {[%clk 0:00:29.1]} 51. Rxa4 {[%clk 0:00:18]} 51...
Rf2+ {[%clk 0:00:30.4]} 52. Kb3 {[%clk 0:00:19.1]} 52... Rxh2 {[%clk 0:00:32]}
53. Ra7 {[%clk 0:00:19.7]} 53... g6 {[%clk 0:00:26.6]} 54. a4 {[%clk 0:00:20.7]}
54... Rh3+ {[%clk 0:00:26.6]} 55. Kb4 {[%clk 0:00:16.2]} 55... Rf3 {[%clk
0:00:27.4]} 56. a5 {[%clk 0:00:17]} 56... Rxf4+ {[%clk 0:00:28.8]} 57. Kb5
{[%clk 0:00:18.3]} 57... h5 {[%clk 0:00:26.4]} 58. a6 {[%clk 0:00:19]} 58... Rf1
{[%clk 0:00:27.1]} 59. Ra8 {[%clk 0:00:18.4]} 59... Rb1+ {[%clk 0:00:24.6]} 60.
Kc4 {[%clk 0:00:15.5]} 60... h4 {[%clk 0:00:18.4]} 61. a7 {[%clk 0:00:14.5]}
61... Ra1 {[%clk 0:00:19.7]} 62. Re8+ {[%clk 0:00:14.9]} 62... Kf6 {[%clk
0:00:20.5]} 63. a8=Q {[%clk 0:00:14.6]} 63... Rxa8 {[%clk 0:00:21.8]} 64. Rxa8
{[%clk 0:00:15]} 64... g5 {[%clk 0:00:22.5]} 65. Kd3 {[%clk 0:00:15.5]} 65... h3
{[%clk 0:00:23.8]} 66. Ke2 {[%clk 0:00:15.7]} 66... g4 {[%clk 0:00:25.1]} 67.
Kf2 {[%clk 0:00:15.4]} 67... f4 {[%clk 0:00:23.8]} 68. Ra5 {[%clk 0:00:15.1]}
68... g3+ {[%clk 0:00:22.7]} 69. Kf3 {[%clk 0:00:15.1]} 69... h2 {[%clk
0:00:24.3]} 70. Kg2 {[%clk 0:00:14.3]} 70... Ke6 {[%clk 0:00:20.6]} 71. Rh5
{[%clk 0:00:12.9]} 71... Kf6 {[%clk 0:00:20.7]} 72. Kf3 {[%clk 0:00:13.3]} 72...
Kg6 {[%clk 0:00:21.1]} 73. Rh8 {[%clk 0:00:14]} 73... Kg7 {[%clk 0:00:21.4]} 74.
Rh4 {[%clk 0:00:13.5]} 74... Kg6 {[%clk 0:00:22]} 75. Kg2 {[%clk 0:00:13.6]}
75... Kg5 {[%clk 0:00:22]} 76. Rh8 {[%clk 0:00:14.5]} 76... Kg4 {[%clk 0:00:22]}
77. Rg8+ {[%clk 0:00:15.3]} 77... Kf5 {[%clk 0:00:23.2]} 78. Rf8+ {[%clk
0:00:16]} 78... Ke4 {[%clk 0:00:24.1]} 79. Re8+ {[%clk 0:00:16.7]} 79... Kf5
{[%clk 0:00:25.4]} 80. Rh8 {[%clk 0:00:17.5]} 80... Kg4 {[%clk 0:00:25.6]} 81.
Rg8+ {[%clk 0:00:17.8]} 81... Kf5 {[%clk 0:00:26.8]} 82. Rh8 {[%clk 0:00:17.9]}
82... Kg4 {[%clk 0:00:27.7]} 83. Kh1 {[%clk 0:00:18.3]} 83... Kf3 {[%clk
0:00:27.7]} 84. Ra8 {[%clk 0:00:17.2]} 84... Kf2 {[%clk 0:00:26.9]} 85. Ra2+
{[%clk 0:00:16.9]} 85... Kf3 {[%clk 0:00:28]} 86. Rb2 {[%clk 0:00:16.9]} 86...
Ke3 {[%clk 0:00:29]} 87. Rb3+ {[%clk 0:00:16.8]} 87... Kf2 {[%clk 0:00:29.8]}
88. Rf3+ {[%clk 0:00:15.8]} 88... Kxf3 {[%clk 0:00:29.3]} 1/2-1/2